[Event "FIDE U16 Olympiad_boards_1-80"]
[Site "Eindhoven, Netherlands"]
[Date "2023.08.14"]
[Round "3.44"]
[White "Peglau, Charis"]
[Black "Kosak, Karolina"]
[Result "1-0"]
[TimeControl "2700+10"]
[WhiteElo "1937"]
[BlackElo "1364"]

1. Nf3 {[%clk 00:45:18]} {[%emt 00:00:02]} f5 {[%clk 00:45:10]} {[%emt
00:00:10]} 2. e3 {[%clk 00:44:42]} {[%emt 00:00:46]} Nf6 {[%clk 00:45:03]}
{[%emt 00:00:15]} 3. b3 {[%clk 00:44:34]} {[%emt 00:00:19]} d6 {[%clk
00:44:54]} {[%emt 00:00:20]} 4. d4 {[%clk 00:44:22]} {[%emt 00:00:23]} e6
{[%clk 00:44:58]} {[%emt 00:00:04]} 5. Bb2 {[%clk 00:44:19]} {[%emt 00:00:13]}
Be7 {[%clk 00:45:06]} {[%emt 00:00:03]} 6. c4 {[%clk 00:43:57]} {[%emt
00:00:32]} O-O {[%clk 00:45:03]} {[%emt 00:00:13]} 7. Nc3 {[%clk 00:43:41]}
{[%emt 00:00:26]} b6 {[%clk 00:44:43]} {[%emt 00:00:28]} 8. Bd3 {[%clk
00:39:43]} {[%emt 00:04:09]} Bb7 {[%clk 00:44:44]} {[%emt 00:00:09]} 9. O-O
{[%clk 00:39:33]} {[%emt 00:00:21]} Ne4 {[%clk 00:43:57]} {[%emt 00:00:57]} 10.
Nd2 {[%clk 00:33:21]} {[%emt 00:06:22]} Nxc3 {[%clk 00:44:04]} {[%emt
00:00:03]} 11. Bxc3 {[%clk 00:33:29]} {[%emt 00:00:01]} Nd7 {[%clk 00:41:43]}
{[%emt 00:02:30]} 12. e4 {[%clk 00:32:36]} {[%emt 00:01:05]} f4 {[%clk
00:40:34]} {[%emt 00:01:18]} 13. e5 {[%clk 00:27:11]} {[%emt 00:05:36]} dxe5
{[%clk 00:37:40]} {[%emt 00:03:04]} 14. dxe5 {[%clk 00:27:16]} {[%emt
00:00:05]} Qe8 {[%clk 00:36:36]} {[%emt 00:01:11]} 15. Qg4 {[%clk 00:24:20]}
{[%emt 00:03:09]} Qf7 {[%clk 00:32:58]} {[%emt 00:03:41]} 16. Rad1 {[%clk
00:21:04]} {[%emt 00:03:32]} Rad8 {[%clk 00:32:05]} {[%emt 00:01:02]} 17. Rfe1
{[%clk 00:19:39]} {[%emt 00:01:37]} Nc5 {[%clk 00:30:53]} {[%emt 00:01:19]} 18.
Bc2 {[%clk 00:19:36]} {[%emt 00:00:15]} Nd3 {[%clk 00:27:16]} {[%emt 00:03:48]}
19. Rf1 {[%clk 00:16:55]} {[%emt 00:02:51]} a5 {[%clk 00:26:55]} {[%emt
00:00:31]} 20. Nf3 {[%clk 00:15:41]} {[%emt 00:01:24]} Nc5 {[%clk 00:25:42]}
{[%emt 00:01:19]} 21. Nd4 {[%clk 00:14:37]} {[%emt 00:01:18]} Be4 {[%clk
00:16:20]} {[%emt 00:09:31]} 22. Bxe4 {[%clk 00:12:23]} {[%emt 00:02:25]} Nxe4
{[%clk 00:16:29]} {[%emt 00:00:01]} 23. Bb2 {[%clk 00:12:26]} {[%emt 00:00:07]}
Nc5 {[%clk 00:15:15]} {[%emt 00:01:20]} 24. Ba3 {[%clk 00:11:06]} {[%emt
00:01:34]} Rde8 {[%clk 00:14:08]} {[%emt 00:01:13]} 25. Nb5 {[%clk 00:07:56]}
{[%emt 00:03:24]} Rc8 {[%clk 00:11:27]} {[%emt 00:02:48]} 26. Na7 {[%clk
00:06:46]} {[%emt 00:01:23]} Rcd8 {[%clk 00:10:31]} {[%emt 00:01:01]} 27. Nc6
{[%clk 00:06:31]} {[%emt 00:00:29]} Rxd1 {[%clk 00:09:48]} {[%emt 00:00:54]} 28.
Rxd1 {[%clk 00:06:40]} {[%emt 00:00:01]} Re8 {[%clk 00:09:19]} {[%emt
00:00:38]} 29. Rd4 {[%clk 00:05:48]} {[%emt 00:01:03]} Qf5 {[%clk 00:06:16]}
{[%emt 00:03:13]} 30. Qxf5 {[%clk 00:04:56]} {[%emt 00:01:02]} exf5 {[%clk
00:06:25]} 31. Rxf4 {[%clk 00:04:54]} {[%emt 00:00:12]} Nd3 {[%clk 00:04:51]}
{[%emt 00:01:44]} 32. Nxe7+ {[%clk 00:04:53]} {[%emt 00:00:10]} Rxe7 {[%clk
00:04:42]} {[%emt 00:00:20]} 33. Bxe7 {[%clk 00:02:11]} {[%emt 00:02:52]} Nxf4
{[%clk 00:04:51]} {[%emt 00:00:01]} 34. g3 {[%clk 00:01:48]} {[%emt 00:00:34]}
Ne6 {[%clk 00:05:00]} 35. f4 {[%clk 00:01:45]} {[%emt 00:00:14]} Kf7 {[%clk
00:04:55]} {[%emt 00:00:14]} 36. Ba3 {[%clk 00:01:48]} {[%emt 00:00:07]} g5
{[%clk 00:04:33]} {[%emt 00:00:32]} 37. Bc1 {[%clk 00:01:30]} {[%emt 00:00:28]}
g4 {[%clk 00:02:52]} {[%emt 00:01:51]} 38. Be3 {[%clk 00:01:00]} {[%emt
00:00:40]} Ke7 {[%clk 00:01:31]} {[%emt 00:01:31]} 39. Kf2 {[%clk 00:01:00]}
{[%emt 00:00:10]} Kd7 {[%clk 00:01:36]} {[%emt 00:00:04]} 40. Ke2 {[%clk
00:01:04]} {[%emt 00:00:07]} c5 {[%clk 00:01:24]} {[%emt 00:00:21]} 41. Kd3
{[%clk 00:00:49]} {[%emt 00:00:26]} Kc6 {[%clk 00:01:31]} {[%emt 00:00:03]} 42.
Kc3 {[%clk 00:00:47]} {[%emt 00:00:12]} Nc7 {[%clk 00:01:21]} {[%emt 00:00:16]}
43. a3 {[%clk 00:00:48]} {[%emt 00:00:14]} Ne6 {[%clk 00:01:29]} {[%emt
00:00:01]} 44. b4 {[%emt 00:01:36]} Nc7 {[%clk 00:00:34]} 45. bxc5 {[%clk
00:00:19]} {[%emt 00:00:18]} bxc5 {[%clk 00:00:39]} {[%emt 00:00:04]} 46. Kb3
{[%clk 00:00:27]} {[%emt 00:00:03]} Kb6 {[%clk 00:00:41]} {[%emt 00:00:06]} 47.
Ka4 {[%clk 00:00:34]} {[%emt 00:00:05]} Ne6 {[%clk 00:00:47]} {[%emt 00:00:04]}
48. Bd2 {[%emt 00:00:30]} h5 {[%clk 00:00:34]} 49. Bxa5+ {[%clk 00:00:46]}
{[%emt 00:00:02]} Ka6 {[%clk 00:00:43]} 50. Bc3 {[%clk 00:00:50]} {[%emt
00:00:05]} Kb6 {[%clk 00:00:41]} {[%emt 00:00:11]} 51. Kb3 {[%clk 00:00:43]}
{[%emt 00:00:18]} Ka6 {[%clk 00:00:44]} {[%emt 00:00:06]} 52. a4 {[%clk
00:00:33]} {[%emt 00:00:21]} Nd8 {[%clk 00:00:34]} {[%emt 00:00:20]} 53. Bd2
{[%clk 00:00:35]} {[%emt 00:00:08]} Ne6 {[%clk 00:00:26]} {[%emt 00:00:18]} 54.
a5 {[%clk 00:00:21]} {[%emt 00:00:23]} Nd4+ {[%clk 00:00:21]} {[%emt 00:00:16]}
55. Ka4 {[%clk 00:00:27]} {[%emt 00:00:04]} Nc6 {[%clk 00:00:16]} {[%emt
00:00:15]} 56. e6 {[%clk 00:00:22]} {[%emt 00:00:16]} Ne7 {[%clk 00:00:17]}
{[%emt 00:00:08]} 57. Be3 {[%clk 00:00:29]} {[%emt 00:00:04]} Ng6 {[%clk
00:00:18]} {[%emt 00:00:08]} 58. Bxc5 {[%clk 00:00:37]} {[%emt 00:00:02]} h4
{[%clk 00:00:16]} {[%emt 00:00:12]} 59. e7 {[%clk 00:00:41]} {[%emt 00:00:06]}
Nxe7 {[%clk 00:00:23]} {[%emt 00:00:02]} 60. Bxe7 {[%clk 00:00:50]} {[%emt
00:00:02]} hxg3 {[%clk 00:00:28]} {[%emt 00:00:05]} 61. hxg3 {[%clk 00:00:59]}
{[%emt 00:00:01]} Kb7 {[%clk 00:00:28]} {[%emt 00:00:09]} 62. Kb5 {[%clk
00:01:05]} {[%emt 00:00:04]} Ka7 {[%clk 00:00:37]} {[%emt 00:00:02]} 63. c5
{[%clk 00:00:59]} {[%emt 00:00:16]} Kb7 {[%clk 00:00:42]} {[%emt 00:00:05]} 64.
c6+ {[%clk 00:01:06]} {[%emt 00:00:03]} Ka8 {[%clk 00:00:47]} {[%emt 00:00:04]}
65. Kb6 {[%clk 00:01:02]} {[%emt 00:00:15]} Kb8 {[%emt 00:00:08]} 1-0

[Event "FIDE U16 Olympiad_boards_1-80"]
[Site "Eindhoven, Netherlands"]
[Date "2023.08.14"]
[Round "3.45"]
[White "Kiladze, Luka"]
[Black "Aswath, S"]
[Result "1/2-1/2"]
[TimeControl "2700+10"]
[WhiteElo "1912"]
[BlackElo "2229"]

1. d4 {[%clk 00:45:14]} {[%emt 00:00:06]} d5 {[%clk 00:45:18]} {[%emt
00:00:03]} 2. c4 {[%clk 00:45:23]} {[%emt 00:00:01]} e6 {[%clk 00:45:26]}
{[%emt 00:00:02]} 3. Nf3 {[%clk 00:45:31]} {[%emt 00:00:02]} Nf6 {[%clk
00:45:31]} {[%emt 00:00:04]} 4. g3 {[%clk 00:45:39]} {[%emt 00:00:02]} dxc4
{[%clk 00:45:38]} {[%emt 00:00:03]} 5. Qa4+ {[%clk 00:45:26]} {[%emt 00:00:24]}
Nbd7 {[%clk 00:45:36]} {[%emt 00:00:12]} 6. Qxc4 {[%clk 00:45:32]} {[%emt
00:00:04]} a6 {[%clk 00:45:44]} {[%emt 00:00:02]} 7. Bg2 {[%clk 00:45:41]}
{[%emt 00:00:01]} b5 {[%clk 00:45:52]} {[%emt 00:00:03]} 8. Qc6 {[%clk
00:45:49]} {[%emt 00:00:01]} Rb8 {[%clk 00:46:00]} {[%emt 00:00:02]} 9. Bf4
{[%clk 00:45:36]} {[%emt 00:00:23]} Bb7 {[%clk 00:46:08]} {[%emt 00:00:02]} 10.
Qxc7 {[%clk 00:43:50]} {[%emt 00:01:57]} Bb4+ {[%clk 00:46:14]} {[%emt
00:00:03]} 11. Nbd2 {[%clk 00:39:51]} {[%emt 00:04:09]} Qxc7 {[%clk 00:46:20]}
{[%emt 00:00:04]} 12. Bxc7 {[%clk 00:39:58]} {[%emt 00:00:02]} Rc8 {[%clk
00:46:28]} {[%emt 00:00:02]} 13. Bf4 {[%clk 00:38:25]} {[%emt 00:01:43]} Rc2
{[%clk 00:45:53]} {[%emt 00:00:46]} 14. O-O {[%clk 00:33:20]} {[%emt 00:05:15]}
Nd5 {[%clk 00:42:58]} {[%emt 00:03:05]} 15. Rfc1 {[%clk 00:29:43]} {[%emt
00:03:47]} Rxb2 {[%clk 00:42:54]} {[%emt 00:00:14]} 16. a3 {[%clk 00:25:14]}
{[%emt 00:04:39]} Ba5 {[%clk 00:35:55]} {[%emt 00:07:09]} 17. Rab1 {[%clk
00:21:29]} {[%emt 00:03:55]} Rxb1 {[%clk 00:26:44]} {[%emt 00:09:21]} 18. Nxb1
{[%clk 00:20:56]} {[%emt 00:00:43]} f6 {[%clk 00:23:26]} {[%emt 00:03:28]} 19.
Bd2 {[%clk 00:20:20]} {[%emt 00:00:47]} Bb6 {[%clk 00:22:53]} {[%emt 00:00:43]}
20. e3 {[%clk 00:19:05]} {[%emt 00:01:24]} Kf7 {[%clk 00:22:09]} {[%emt
00:00:54]} 21. Ne1 {[%clk 00:19:04]} {[%emt 00:00:10]} Rc8 {[%clk 00:21:00]}
{[%emt 00:01:19]} 22. Rxc8 {[%clk 00:19:03]} {[%emt 00:00:11]} Bxc8 {[%clk
00:21:09]} {[%emt 00:00:02]} 23. Nd3 {[%clk 00:17:13]} {[%emt 00:02:01]} Bc7
{[%clk 00:20:39]} {[%emt 00:00:39]} 24. Nc3 {[%clk 00:15:57]} {[%emt 00:01:26]}
N5b6 {[%clk 00:20:43]} {[%emt 00:00:06]} 25. Ne4 {[%clk 00:14:19]} {[%emt
00:01:48]} Nc4 {[%clk 00:20:09]} {[%emt 00:00:44]} 26. Bc1 {[%clk 00:14:27]}
{[%emt 00:00:02]} Ke7 {[%clk 00:19:19]} {[%emt 00:01:00]} 27. Nb4 {[%clk
00:14:14]} {[%emt 00:00:23]} Ndb6 {[%clk 00:14:36]} {[%emt 00:04:53]} 28. Nc5
{[%clk 00:13:12]} {[%emt 00:01:12]} a5 {[%clk 00:14:40]} {[%emt 00:00:06]} 29.
Nc6+ {[%clk 00:13:19]} {[%emt 00:00:02]} Kf7 {[%clk 00:14:48]} {[%emt
00:00:02]} 30. Na7 {[%clk 00:13:04]} {[%emt 00:00:26]} Nd6 {[%clk 00:12:22]}
{[%emt 00:02:36]} 31. Bf1 {[%clk 00:11:24]} {[%emt 00:01:50]} b4 {[%clk
00:11:53]} {[%emt 00:00:39]} 32. axb4 {[%clk 00:10:54]} {[%emt 00:00:40]} axb4
{[%clk 00:11:59]} {[%emt 00:00:03]} 33. Bd2 {[%clk 00:10:26]} {[%emt 00:00:39]}
Nd5 {[%clk 00:11:07]} {[%emt 00:01:03]} 34. e4 {[%clk 00:10:08]} {[%emt
00:00:28]} Nc3 {[%clk 00:10:43]} {[%emt 00:00:33]} 35. e5 {[%clk 00:10:13]}
{[%emt 00:00:05]} fxe5 {[%clk 00:07:59]} {[%emt 00:02:55]} 36. dxe5 {[%clk
00:10:17]} {[%emt 00:00:05]} Nde4 {[%clk 00:07:49]} {[%emt 00:00:19]} 37. Nxe4
{[%clk 00:09:29]} {[%emt 00:00:59]} Nxe4 {[%clk 00:07:52]} {[%emt 00:00:07]} 38.
Bxb4 {[%clk 00:09:01]} {[%emt 00:00:39]} Bb7 {[%clk 00:07:53]} {[%emt
00:00:08]} 39. Nb5 {[%clk 00:07:06]} {[%emt 00:02:05]} Bxe5 {[%clk 00:07:55]}
{[%emt 00:00:08]} 40. Bg2 {[%clk 00:04:29]} {[%emt 00:02:47]} Kf6 {[%clk
00:05:41]} {[%emt 00:02:23]} 41. f3 {[%clk 00:03:23]} {[%emt 00:01:17]} Bc6
{[%clk 00:05:33]} {[%emt 00:00:18]} 42. f4 {[%clk 00:01:51]} {[%emt 00:01:41]}
Bb2 {[%clk 00:01:55]} {[%emt 00:03:48]} 43. Bxe4 {[%clk 00:01:28]} {[%emt
00:00:34]} Bxb5 {[%clk 00:01:36]} {[%emt 00:00:30]} 44. Kg2 {[%clk 00:01:12]}
{[%emt 00:00:24]} h6 {[%clk 00:01:37]} {[%emt 00:00:10]} 45. Ba5 {[%clk
00:01:11]} {[%emt 00:00:11]} Bd4 {[%clk 00:01:35]} {[%emt 00:00:12]} 46. h4
{[%clk 00:01:08]} {[%emt 00:00:13]} Bc4 {[%clk 00:01:11]} {[%emt 00:00:34]} 47.
Kf3 {[%clk 00:00:48]} {[%emt 00:00:30]} h5 {[%clk 00:01:07]} {[%emt 00:00:14]}
48. Bd8+ {[%clk 00:00:43]} {[%emt 00:00:15]} Kf7 {[%clk 00:01:16]} {[%emt
00:00:02]} 49. Bc7 {[%clk 00:00:51]} Bd5 {[%clk 00:01:11]} {[%emt 00:00:14]} 50.
Be5 {[%clk 00:00:24]} {[%emt 00:00:38]} Bc5 {[%clk 00:00:32]} {[%emt 00:00:49]}
51. f5 {[%clk 00:00:17]} {[%emt 00:00:17]} Bxe4+ {[%clk 00:00:31]} {[%emt
00:00:10]} 52. Kxe4 {[%clk 00:00:27]} g6 {[%clk 00:00:26]} {[%emt 00:00:15]} 53.
fxe6+ {[%clk 00:00:34]} {[%emt 00:00:02]} Kxe6 {[%clk 00:00:34]} {[%emt
00:00:02]} 54. Bf4 {[%clk 00:00:43]} Bf2 {[%clk 00:00:38]} {[%emt 00:00:07]} 55.
Kf3 {[%clk 00:00:52]} {[%emt 00:00:01]} Be1 {[%clk 00:00:45]} {[%emt 00:00:02]}
56. Ke4 {[%clk 00:01:02]} {[%emt 00:00:02]} Bc3 {[%clk 00:00:43]} {[%emt
00:00:11]} 57. Bb8 {[%clk 00:01:09]} {[%emt 00:00:04]} Bf6 {[%clk 00:00:43]}
{[%emt 00:00:09]} 58. Bf4 {[%clk 00:01:15]} {[%emt 00:00:04]} Be7 {[%clk
00:00:50]} {[%emt 00:00:02]} 59. Bb8 {[%clk 00:01:13]} {[%emt 00:00:12]}
1/2-1/2

[Event "FIDE U16 Olympiad_boards_1-80"]
[Site "Eindhoven, Netherlands"]
[Date "2023.08.14"]
[Round "3.46"]
[White "Adireddy, Arjun"]
[Black "Shamatava, Nikolozi"]
[Result "1-0"]
[TimeControl "2700+10"]
[WhiteElo "1987"]
[BlackElo "1872"]

1. e4 {[%clk 00:45:18]} {[%emt 00:00:01]} e5 {[%clk 00:45:19]} {[%emt
00:00:01]} 2. Nf3 {[%clk 00:45:27]} Nc6 {[%clk 00:45:28]} {[%emt 00:00:01]} 3.
Bb5 {[%clk 00:45:35]} {[%emt 00:00:02]} a6 {[%clk 00:45:37]} {[%emt 00:00:01]}
4. Ba4 {[%clk 00:45:44]} {[%emt 00:00:01]} Nf6 {[%clk 00:45:46]} {[%emt
00:00:01]} 5. O-O {[%clk 00:45:53]} {[%emt 00:00:01]} Nxe4 {[%clk 00:45:55]}
{[%emt 00:00:02]} 6. d4 {[%clk 00:44:29]} {[%emt 00:01:33]} b5 {[%clk
00:46:04]} {[%emt 00:00:01]} 7. Bb3 {[%clk 00:44:38]} {[%emt 00:00:02]} d5
{[%clk 00:46:13]} 8. dxe5 {[%clk 00:44:45]} {[%emt 00:00:03]} Be6 {[%clk
00:46:21]} {[%emt 00:00:01]} 9. c3 {[%clk 00:44:09]} {[%emt 00:00:46]} Be7
{[%clk 00:46:22]} {[%emt 00:00:09]} 10. Nbd2 {[%clk 00:43:14]} {[%emt
00:01:06]} O-O {[%clk 00:44:28]} {[%emt 00:02:03]} 11. Nd4 {[%clk 00:40:35]}
{[%emt 00:02:50]} Nxd4 {[%clk 00:43:52]} {[%emt 00:00:45]} 12. cxd4 {[%clk
00:40:41]} {[%emt 00:00:04]} Nxd2 {[%clk 00:40:31]} {[%emt 00:03:31]} 13. Bxd2
{[%clk 00:40:45]} {[%emt 00:00:07]} c5 {[%clk 00:40:40]} {[%emt 00:00:01]} 14.
Be3 {[%clk 00:37:31]} {[%emt 00:03:23]} c4 {[%clk 00:37:38]} {[%emt 00:03:12]}
15. Bc2 {[%clk 00:37:38]} {[%emt 00:00:03]} Qd7 {[%clk 00:37:31]} {[%emt
00:00:15]} 16. f4 {[%clk 00:34:34]} {[%emt 00:03:17]} Bf5 {[%clk 00:37:26]}
{[%emt 00:00:14]} 17. Bxf5 {[%clk 00:34:31]} {[%emt 00:00:13]} Qxf5 {[%clk
00:37:34]} {[%emt 00:00:02]} 18. Qf3 {[%clk 00:34:35]} {[%emt 00:00:06]} Rad8
{[%clk 00:37:04]} {[%emt 00:00:40]} 19. g4 {[%clk 00:34:33]} {[%emt 00:00:13]}
Qe4 {[%clk 00:33:00]} {[%emt 00:04:14]} 20. Qxe4 {[%clk 00:30:57]} {[%emt
00:03:45]} dxe4 {[%clk 00:33:08]} {[%emt 00:00:02]} 21. f5 {[%clk 00:31:06]}
{[%emt 00:00:01]} Rd5 {[%clk 00:32:50]} {[%emt 00:00:29]} 22. g5 {[%clk
00:16:46]} {[%emt 00:14:30]} Bd8 {[%clk 00:32:48]} {[%emt 00:00:11]} 23. Rad1
{[%clk 00:16:06]} {[%emt 00:00:50]} Bb6 {[%clk 00:32:47]} {[%emt 00:00:11]} 24.
Rf4 {[%clk 00:16:02]} {[%emt 00:00:14]} Rxe5 {[%clk 00:30:43]} {[%emt
00:02:15]} 25. dxe5 {[%clk 00:16:10]} {[%emt 00:00:01]} Bxe3+ {[%clk 00:30:51]}
{[%emt 00:00:02]} 26. Rf2 {[%clk 00:16:19]} {[%emt 00:00:01]} g6 {[%clk
00:29:43]} {[%emt 00:01:19]} 27. f6 {[%clk 00:16:11]} {[%emt 00:00:18]} h6
{[%clk 00:29:52]} 28. Kg2 {[%clk 00:15:42]} {[%emt 00:00:39]} Bxf2 {[%clk
00:29:57]} {[%emt 00:00:05]} 29. Kxf2 {[%clk 00:15:51]} {[%emt 00:00:01]} hxg5
{[%clk 00:30:03]} {[%emt 00:00:05]} 30. Ke3 {[%clk 00:15:57]} {[%emt 00:00:04]}
Rc8 {[%clk 00:28:39]} {[%emt 00:01:33]} 31. Kxe4 {[%clk 00:16:01]} {[%emt
00:00:06]} b4 {[%clk 00:28:47]} {[%emt 00:00:02]} 32. Rc1 {[%clk 00:15:32]}
{[%emt 00:00:39]} g4 {[%clk 00:20:45]} {[%emt 00:08:13]} 33. Kd4 {[%clk
00:14:05]} {[%emt 00:01:35]} Rd8+ {[%clk 00:20:49]} {[%emt 00:00:07]} 34. Kc5
{[%clk 00:12:27]} {[%emt 00:01:48]} Re8 {[%clk 00:19:01]} {[%emt 00:01:58]} 35.
Kd5 {[%clk 00:06:43]} {[%emt 00:05:54]} Rd8+ {[%clk 00:19:06]} {[%emt
00:00:05]} 36. Ke4 {[%clk 00:06:50]} {[%emt 00:00:03]} Rc8 {[%clk 00:19:03]}
{[%emt 00:00:13]} 37. Rc2 {[%clk 00:03:42]} {[%emt 00:03:19]} c3 {[%clk
00:15:06]} {[%emt 00:04:06]} 38. bxc3 {[%clk 00:03:50]} {[%emt 00:00:03]} bxc3
{[%clk 00:15:14]} {[%emt 00:00:01]} 39. Kd4 {[%clk 00:03:58]} {[%emt 00:00:02]}
Rd8+ {[%clk 00:15:22]} {[%emt 00:00:03]} 40. Kxc3 {[%clk 00:04:02]} {[%emt
00:00:05]} Rd5 {[%clk 00:15:30]} {[%emt 00:00:02]} 41. Re2 {[%clk 00:03:54]}
{[%emt 00:00:18]} g5 {[%clk 00:15:35]} {[%emt 00:00:05]} 42. Kc4 {[%clk
00:01:31]} {[%emt 00:02:34]} Ra5 {[%clk 00:15:38]} {[%emt 00:00:07]} 43. Kb4
{[%clk 00:01:30]} {[%emt 00:00:10]} Rb5+ {[%clk 00:15:15]} {[%emt 00:00:31]} 44.
Kc4 {[%clk 00:01:29]} {[%emt 00:00:13]} Ra5 {[%clk 00:15:05]} {[%emt 00:00:20]}
45. Kb4 {[%clk 00:00:30]} {[%emt 00:01:09]} Rd5 {[%clk 00:14:01]} {[%emt
00:01:15]} 46. Kc4 {[%clk 00:00:38]} {[%emt 00:00:02]} Ra5 {[%clk 00:13:19]}
{[%emt 00:00:52]} 47. Kd4 {[%clk 00:00:46]} {[%emt 00:00:02]} Kh7 {[%clk
00:13:14]} {[%emt 00:00:15]} 48. Rf2 {[%clk 00:00:55]} {[%emt 00:00:01]} Kg8
{[%clk 00:12:59]} {[%emt 00:00:25]} 49. Ke4 {[%clk 00:00:59]} {[%emt 00:00:05]}
Ra3 {[%clk 00:12:51]} {[%emt 00:00:18]} 50. Kd5 {[%clk 00:00:12]} {[%emt
00:00:58]} Rf3 {[%clk 00:11:27]} {[%emt 00:01:34]} 51. Rc2 {[%clk 00:00:12]}
{[%emt 00:00:09]} Kh7 {[%clk 00:11:21]} {[%emt 00:00:18]} 52. Rc8 {[%clk
00:00:12]} {[%emt 00:00:09]} Kg6 {[%clk 00:10:38]} {[%emt 00:00:53]} 53. Rg8+
{[%clk 00:00:13]} {[%emt 00:00:08]} Kf5 {[%clk 00:10:48]} {[%emt 00:00:01]} 54.
Kd6 {[%clk 00:00:14]} {[%emt 00:00:09]} Rf2 {[%clk 00:06:33]} {[%emt 00:04:24]}
55. Ke7 {[%clk 00:00:14]} {[%emt 00:00:10]} Rxh2 {[%clk 00:05:24]} {[%emt
00:01:20]} 56. Kxf7 {[%clk 00:00:22]} {[%emt 00:00:02]} g3 {[%clk 00:05:26]}
{[%emt 00:00:07]} 57. e6 {[%clk 00:00:28]} {[%emt 00:00:05]} g2 {[%clk
00:05:28]} {[%emt 00:00:08]} 58. e7 {[%clk 00:00:36]} {[%emt 00:00:01]} g1=Q
{[%clk 00:05:37]} {[%emt 00:00:02]} 59. e8=Q {[%clk 00:00:44]} {[%emt
00:00:02]} Qc5 {[%clk 00:03:54]} {[%emt 00:01:52]} 60. Qe6+ {[%clk 00:00:13]}
{[%emt 00:00:41]} Kf4 {[%clk 00:04:04]} {[%emt 00:00:01]} 61. Kg7 {[%clk
00:00:12]} {[%emt 00:00:11]} Qc2 {[%clk 00:02:53]} {[%emt 00:01:18]} 62. Qd6+
{[%clk 00:00:14]} {[%emt 00:00:10]} Kg4 {[%clk 00:02:55]} {[%emt 00:00:07]} 63.
Qe6+ {[%clk 00:00:13]} {[%emt 00:00:13]} Kf4 {[%clk 00:02:59]} {[%emt
00:00:05]} 64. Qd6+ {[%clk 00:00:13]} {[%emt 00:00:10]} Kg4 {[%clk 00:03:07]}
{[%emt 00:00:02]} 65. Rh8 {[%clk 00:00:14]} {[%emt 00:00:09]} Rf2 {[%clk
00:02:37]} {[%emt 00:00:41]} 66. Qe6+ {[%clk 00:00:15]} {[%emt 00:00:09]} Rf5
{[%clk 00:02:40]} {[%emt 00:00:07]} 67. f7 {[%clk 00:00:12]} {[%emt 00:00:13]}
Qc3+ {[%clk 00:02:17]} {[%emt 00:00:33]} 68. Kg8 {[%clk 00:00:13]} {[%emt
00:00:09]} Kf4 {[%clk 00:02:01]} {[%emt 00:00:26]} 69. Qxf5+ {[%clk 00:00:16]}
{[%emt 00:00:07]} Kxf5 {[%clk 00:02:09]} {[%emt 00:00:02]} 70. f8=Q+ {[%emt
00:00:02]} Kg4 {[%clk 00:02:17]} {[%emt 00:00:01]} 71. Rh7 {[%clk 00:00:14]}
{[%emt 00:00:20]} Qc4+ {[%clk 00:02:16]} {[%emt 00:00:11]} 72. Qf7 {[%clk
00:00:15]} {[%emt 00:00:10]} Qc8+ {[%clk 00:02:12]} {[%emt 00:00:11]} 73. Kg7
{[%clk 00:00:14]} {[%emt 00:00:14]} Qc3+ {[%clk 00:02:20]} {[%emt 00:00:02]} 74.
Qf6 {[%clk 00:00:13]} {[%emt 00:00:11]} Qc7+ {[%clk 00:02:21]} {[%emt
00:00:09]} 75. Kg8 {[%clk 00:00:14]} {[%emt 00:00:09]} Qc8+ {[%clk 00:02:27]}
{[%emt 00:00:04]} 76. Qf8 {[%clk 00:00:22]} {[%emt 00:00:02]} Qc4+ {[%clk
00:02:35]} {[%emt 00:00:02]} 77. Rf7 {[%clk 00:00:30]} {[%emt 00:00:01]} Qxa2
{[%clk 00:02:43]} {[%emt 00:00:03]} 78. Qc8+ {[%clk 00:00:38]} {[%emt
00:00:02]} Kh5 {[%clk 00:02:46]} {[%emt 00:00:07]} 79. Qh3+ {[%clk 00:00:40]}
{[%emt 00:00:05]} Kg6 {[%clk 00:02:55]} {[%emt 00:00:03]} 80. Qh7# {[%clk
00:00:49]} 1-0